Workbook

Sheet Tabelle1
A1: Maximal slope delta: | C1: 0.9
A3: Original Curve | D3: Reduced Curve
A4: x | B4: Original f(x) | D4: x | E4: Reduced f(x)
A5: 0 | B5: =-0.25*(A5-3)^4 + 2*(A5-3)^2 + 2.25 -> 0 | D5: =sbReducePoints(A5:A3005,B5:B3005,C1) -> 0 | E5: 0
A6: =A5+0.002 -> 0.002 | B6: =-0.25*(A6-3)^4 + 2*(A6-3)^2 + 2.25 -> 0.029954024 | D6: 0.082 | E6: 1.154316801
A7: =A6+0.002 -> 0.004 | B7: 0.05981619194 | D7: 0.168 | E7: 2.209449747
A8: 0.006 | B8: 0.08958664768 | D8: 0.262 | E8: 3.193370184
A9: 0.008 | B9: 0.119265535 | D9: 0.364 | E9: 4.076592834
A10: 0.01 | B10: 0.1488529975 | D10: 0.476 | E10: 4.845092357
A11: 0.012 | B11: 0.1783491788 | D11: 0.602 | E11: 5.484021459
A12: 0.014 | B12: 0.2077542224 | D12: 0.746 | E12: 5.958121293
A13: 0.016 | B13: 0.2370682716 | D13: 0.92 | E13: 6.22336576
A14: 0.018 | B14: 0.2662914698 | D14: 1.144 | E14: 6.172920473
A15: 0.02 | B15: 0.29542396 | D15: 1.5 | E15: 5.484375
A16: 0.022 | B16: 0.3244658854 | D16: 2.51 | E16: 2.715787998
A17: 0.024 | B17: 0.3534173891 | D17: 2.976 | E17: 2.251151917
A18: 0.026 | B18: 0.3822786138 | D18: 3.436 | E18: 2.621157878
A19: 0.028 | B19: 0.4110497023 | D19: 4.138 | E19: 4.42080326
A20: 0.03 | B20: 0.4397307975 | D20: 4.724 | E20: 5.985894456
A21: 0.032 | B21: 0.4683220419 | D21: 4.988 | E21: 6.249427451
A22: 0.034 | B22: 0.4968235779 | D22: 5.18 | E22: 6.10847356
A23: 0.036 | B23: 0.5252355481 | D23: 5.336 | E23: 5.719363511
A24: 0.038 | B24: 0.5535580947 | D24: 5.468 | E24: 5.156904658
A25: 0.04 | B25: 0.58179136 | D25: 5.586 | E25: 4.444475685
A26: 0.042 | B26: 0.6099354861 | D26: 5.692 | E26: 3.614468541
A27: 0.044 | B27: 0.637990615 | D27: 5.788 | E27: 2.691223393
A28: 0.046 | B28: 0.6659568886 | D28: 5.878 | E28: 1.664226161
A29: 0.048 | B29: 0.6938344489 | D29: 5.962 | E29: 0.5535580947
A30: 0.05 | B30: 0.7216234375 | D30: 6 | E30: 6.579625733e-12
A31: 0.052 | B31: 0.7493239961
A32: 0.054 | B32: 0.7769362662
A33: 0.056 | B33: 0.8044603894
A34: 0.058 | B34: 0.8318965069
A35: 0.06 | B35: 0.85924476
A36: 0.062 | B36: 0.8865052899
A37: 0.064 | B37: 0.9136782377
A38: 0.066 | B38: 0.9407637443
A39: 0.068 | B39: 0.9677619507
A40: 0.07 | B40: 0.9946729975
A41: 0.072 | B41: 1.021497026
A42: 0.074 | B42: 1.048234175
A43: 0.076 | B43: 1.074884587
A44: 0.078 | B44: 1.101448402
A45: 0.08 | B45: 1.12792576
A46: 0.082 | B46: 1.154316801
A47: 0.084 | B47: 1.180621665
A48: 0.086 | B48: 1.206840493
A49: 0.088 | B49: 1.232973424
A50: 0.09 | B50: 1.259020597
A51: 0.092 | B51: 1.284982154
A52: 0.094 | B52: 1.310858233
A53: 0.096 | B53: 1.336648974
A54: 0.098 | B54: 1.362354517
A55: 0.1 | B55: 1.387975
A56: 0.102 | B56: 1.413510563
A57: 0.104 | B57: 1.438961346
A58: 0.106 | B58: 1.464327486
A59: 0.108 | B59: 1.489609124
A60: 0.11 | B60: 1.514806397
A61: 0.112 | B61: 1.539919446
A62: 0.114 | B62: 1.564948408
A63: 0.116 | B63: 1.589893422
A64: 0.118 | B64: 1.614754627
A65: 0.12 | B65: 1.63953216
A66: 0.122 | B66: 1.664226161
A67: 0.124 | B67: 1.688836767
A68: 0.126 | B68: 1.713364116
A69: 0.128 | B69: 1.737808347
A70: 0.13 | B70: =-0.25*(A70-3)^4 + 2*(A70-3)^2 + 2.25 -> 1.762169597
A71: =A70+0.002 -> 0.132 | B71: 1.786448005
A72: 0.134 | B72: 1.810643708
A73: 0.136 | B73: 1.834756842
A74: 0.138 | B74: 1.858787548
A75: 0.14 | B75: 1.88273596
A76: 0.142 | B76: 1.906602217
A77: 0.144 | B77: 1.930386457
A78: 0.146 | B78: 1.954088815
A79: 0.148 | B79: 1.97770943
A80: 0.15 | B80: 2.001248437
A81: 0.152 | B81: 2.024705975
A82: 0.154 | B82: 2.04808218
A83: 0.156 | B83: 2.071377188
A84: 0.158 | B84: 2.094591136
A85: 0.16 | B85: 2.11772416
A86: 0.162 | B86: 2.140776397
A87: 0.164 | B87: 2.163747983
A88: 0.166 | B88: 2.186639055
A89: 0.168 | B89: 2.209449747
A90: 0.17 | B90: 2.232180197
A91: 0.172 | B91: 2.254830541
A92: 0.174 | B92: 2.277400913
A93: 0.176 | B93: 2.29989145
A94: 0.178 | B94: 2.322302287
A95: 0.18 | B95: 2.34463356
A96: 0.182 | B96: 2.366885404
A97: 0.184 | B97: 2.389057955
A98: 0.186 | B98: 2.411151347
A99: 0.188 | B99: 2.433165716
A100: 0.19 | B100: 2.455101197
A101: 0.192 | B101: 2.476957925
A102: 0.194 | B102: 2.498736035
A103: 0.196 | B103: 2.520435661
A104: 0.198 | B104: 2.542056938
A105: 0.2 | B105: 2.5636
A106: 0.202 | B106: 2.585064982
A107: 0.204 | B107: 2.606452019
A108: 0.206 | B108: 2.627761244
A109: 0.208 | B109: 2.648992793
A110: 0.21 | B110: 2.670146797
A111: 0.212 | B111: 2.691223393
A112: 0.214 | B112: 2.712222714
A113: 0.216 | B113: 2.733144892
A114: 0.218 | B114: 2.753990063
A115: 0.22 | B115: 2.77475836
A116: 0.222 | B116: 2.795449916
A117: 0.224 | B117: 2.816064864
A118: 0.226 | B118: 2.836603339
A119: 0.228 | B119: 2.857065472
A120: 0.23 | B120: 2.877451397
A121: 0.232 | B121: 2.897761248
A122: 0.234 | B122: 2.917995157
A123: 0.236 | B123: 2.938153257
A124: 0.238 | B124: 2.95823568
A125: 0.24 | B125: 2.97824256
A126: 0.242 | B126: 2.998174028
A127: 0.244 | B127: 3.018030218
A128: 0.246 | B128: 3.037811261
A129: 0.248 | B129: 3.05751729
A130: 0.25 | B130: 3.077148438
A131: 0.252 | B131: 3.096704834
A132: 0.254 | B132: 3.116186613
A133: 0.256 | B133: 3.135593906
A134: 0.258 | B134: =-0.25*(A134-3)^4 + 2*(A134-3)^2 + 2.25 -> 3.154926844
A135: =A134+0.002 -> 0.26 | B135: 3.17418556
A136: 0.262 | B136: 3.193370184
A137: 0.264 | B137: 3.212480849
A138: 0.266 | B138: 3.231517685
A139: 0.268 | B139: 3.250480824
A140: 0.27 | B140: 3.269370398
A141: 0.272 | B141: 3.288186536
A142: 0.274 | B142: 3.306929371
A143: 0.276 | B143: 3.325599032
A144: 0.278 | B144: 3.344195652
A145: 0.28 | B145: 3.36271936
A146: 0.282 | B146: 3.381170287
A147: 0.284 | B147: 3.399548564
A148: 0.286 | B148: 3.417854322
A149: 0.288 | B149: 3.436087689
A150: 0.29 | B150: 3.454248798
A151: 0.292 | B151: 3.472337777
A152: 0.294 | B152: 3.490354756
A153: 0.296 | B153: 3.508299867
A154: 0.298 | B154: 3.526173238
A155: 0.3 | B155: 3.543975
A156: 0.302 | B156: 3.561705282
A157: 0.304 | B157: 3.579364213
A158: 0.306 | B158: 3.596951923
A159: 0.308 | B159: 3.614468541
A160: 0.31 | B160: 3.631914198
A161: 0.312 | B161: 3.64928902
A162: 0.314 | B162: 3.666593139
A163: 0.316 | B163: 3.683826683
A164: 0.318 | B164: 3.70098978
A165: 0.32 | B165: 3.71808256
A166: 0.322 | B166: 3.735105151
A167: 0.324 | B167: 3.752057682
A168: 0.326 | B168: 3.768940281
A169: 0.328 | B169: 3.785753077
A170: 0.33 | B170: 3.802496198
A171: 0.332 | B171: 3.819169771
A172: 0.334 | B172: 3.835773927
A173: 0.336 | B173: 3.852308791
A174: 0.338 | B174: 3.868774493
A175: 0.34 | B175: 3.88517116
A176: 0.342 | B176: 3.90149892
A177: 0.344 | B177: 3.9177579
A178: 0.346 | B178: 3.933948228
A179: 0.348 | B179: 3.950070031
A180: 0.35 | B180: 3.966123438
A181: 0.352 | B181: 3.982108574
A182: 0.354 | B182: 3.998025567
A183: 0.356 | B183: 4.013874545
A184: 0.358 | B184: 4.029655633
A185: 0.36 | B185: 4.04536896
A186: 0.362 | B186: 4.061014652
A187: 0.364 | B187: 4.076592834
A188: 0.366 | B188: 4.092103636
A189: 0.368 | B189: 4.107547181
A190: 0.37 | B190: 4.122923598
A191: 0.372 | B191: 4.138233011
A192: 0.374 | B192: 4.153475548
A193: 0.376 | B193: 4.168651335
A194: 0.378 | B194: 4.183760497
A195: 0.38 | B195: 4.19880316
A196: 0.382 | B196: 4.213779451
A197: 0.384 | B197: 4.228689494
A198: 0.386 | B198: =-0.25*(A198-3)^4 + 2*(A198-3)^2 + 2.25 -> 4.243533416
A199: =A198+0.002 -> 0.388 | B199: 4.258311342
A200: 0.39 | B200: 4.273023398
A201: 0.392 | B201: 4.287669708
... 2804 more rows
